bitfinex/quotes_SOLUSD_20260113
["timestamp","ask_amount","ask_price","bid_price","bid_amount"]
[1768283653582,0.71040881,140.07,140.05,61.5]
[1768283653871,2.7983978,140.07,140.05,61.5]
[1768283654103,2.78548343,140.06,140.02,0.69675981]
[1768283654259,13.04,140.05,140.02,62.19675981]
[1768283655093,13.04,140.05,140.02,64.2847488]
[1768283655786,13.04,140.05,140.02,62.19675981]
[1768283655992,13.04,140.05,140.02,64.2847488]
[1768283656559,13.04,140.05,140.02,0.69675981]
[1768283657063,13.04,140.05,140.02,2.7847488]
[1768283657320,13.73749444,140.05,140.02,2.08798899]
[1768283657465,13.73749444,140.05,140.01,68.1801107]
[1768283657466,13.73749444,140.05,140.01,64.2847488]
[1768283658173,0.69749444,140.05,140.01,64.2847488]
[1768283658372,2.04000001,140.04,140.01,64.2847488]
[1768283658592,0.69749444,140.03,140.01,61.5]
[1768283658887,0.69749444,140.01,139.97,2.7847488]
[1768283659053,13.04,140.0,139.98,0.69675981]
[1768283659392,13.04,140.0,139.97,2.7847488]
[1768283659559,13.04,140.0,139.97,0.69675981]
[1768283659759,13.04,140.0,139.98,0.69675981]
[1768283661182,3.33395598,139.99,139.98,0.69675981]
[1768283661399,3.33395598,139.99,139.97,2.08798899]
[1768283661574,3.33395598,139.99,139.96,0.69675981]
[1768283661781,3.33395598,139.99,139.97,2.08798899]
[1768283662096,13.04,139.98,139.97,2.7847488]
[1768283662259,8.14012692,139.98,139.97,2.7847488]
[1768283662461,21.5034505,139.98,139.97,2.08798899]
[1768283662661,21.10525384,139.98,139.96,2.08798899]
[1768283663175,21.10525384,139.98,139.97,2.08798899]
[1768283663369,18.74948884,139.98,139.95,0.69675981]
[1768283663690,18.74948884,139.98,139.97,2.08798899]
[1768283666297,17.83749444,139.99,139.98,47.935]
[1768283666495,30.87749444,139.99,139.98,47.935]
[1768283668564,30.18,139.99,139.98,50.02298899]
[1768283668792,30.12286527,139.99,139.98,50.02298899]
[1768283669102,30.06573057,139.99,139.98,50.02298899]
[1768283670370,30.76322501,139.99,139.98,50.02298899]
[1768283670806,30.06573057,139.99,139.98,50.02298899]
[1768283671321,30.06573057,139.99,139.98,47.935]
[1768283672102,0.69749444,140.0,139.99,17.86926943]
[1768283672310,13.73749444,140.0,139.99,17.86926943]
[1768283674198,13.73749444,140.0,139.96,2.7847488]
[1768283674399,0.69749444,139.99,139.96,2.7847488]
[1768283674896,13.7529522,140.0,139.97,2.08798899]
[1768283679003,13.7529522,140.0,139.96,41.49675981]
[1768283679188,13.7529522,140.0,139.97,2.08798899]
[1768283679492,13.7529522,140.0,139.97,42.88798899]
[1768283679800,13.7529522,140.0,139.97,40.8]
[1768283680002,0.7129522,139.99,139.97,42.88798899]
[1768283680202,0.7129522,139.99,139.97,40.8]
[1768283680695,0.7129522,139.99,139.97,42.88798899]
[1768283681499,0.7129522,140.02,139.98,3.98246315]
[1768283681697,13.01419239,140.01,139.99,3.26750855]
[1768283682397,13.01419239,140.01,139.98,41.5149546]
[1768283682582,13.01419239,140.01,139.98,44.78246315]
[1768283683485,0.7129522,140.03,140.0,3.98246315]
[1768283683680,13.04,140.02,140.0,3.98246315]
[1768283684297,0.7129522,140.03,140.0,3.98246315]
[1768283684804,0.7129522,140.07,140.03,0.7149546]
[1768283684991,0.7129522,140.07,140.03,3.98246315]
[1768283685197,13.04,140.06,140.03,3.98246315]
[1768283685693,13.7529522,140.06,140.03,3.98246315]
[1768283685898,13.04,140.05,140.03,3.98246315]
[1768283688294,13.04,140.05,140.03,0.7149546]
[1768283689789,13.04,140.05,140.03,41.5149546]
[1768283691115,13.04,140.05,140.03,40.8]
[1768283691695,0.7129522,140.04,140.03,40.8]
[1768283691901,13.04,140.05,140.04,39.3620478]
[1768283692105,13.04,140.05,140.04,38.6370478]
[1768283692994,16.30750855,140.05,140.04,38.6370478]
[1768283693198,13.04,140.05,140.04,38.6370478]
[1768283693495,16.30750855,140.05,140.04,38.6370478]
[1768283694823,16.30750855,140.05,140.04,10.21009772]
[1768283695119,16.30750855,140.05,140.0,103.0149546]
[1768283695323,13.04,140.05,140.0,8.9149546]
[1768283695540,3.26750855,140.04,140.0,8.9149546]
[1768283696121,16.30750855,140.05,140.0,12.18246315]
[1768283697007,13.04,140.04,140.0,12.18246315]
[1768283698998,13.04,140.04,140.01,0.7149546]
[1768283702252,10.40785706,140.05,140.01,0.7149546]
[1768283702441,13.04,140.03,140.01,0.7149546]
[1768283704372,13.04,140.03,140.01,8.9149546]
[1768283704653,13.04,140.03,140.02,0.69035315]
[1768283708858,13.04,140.03,140.01,8.89035315]
[1768283711658,13.04,140.03,140.02,0.69035315]
[1768283716158,13.04,140.03,140.02,8.89035315]
[1768283716549,13.04,140.03,140.02,8.2]
[1768283722250,13.04,140.03,140.01,0.6919632]
[1768283722251,13.04,140.03,140.01,8.2]
[1768283722456,23.44897431,140.03,140.01,8.2]
[1768283725265,16.30750855,140.03,140.01,8.2]
[1768283727876,16.30750855,140.03,140.0,8.8919632]
[1768283730893,3.26750855,140.02,140.0,8.2]
[1768283731760,3.26750855,140.01,139.98,0.6919632]
[1768283731961,13.04,140.0,139.98,0.6919632]
[1768283732185,3.26750855,139.99,139.98,0.6919632]
[1768283732385,3.23750855,139.99,139.98,8.8919632]
[1768283733767,3.23750855,139.99,139.98,8.2]
[1768283734980,0.9205343,139.99,139.98,8.89032234]
[1768283736383,7.14123654,140.04,139.99,0.69032234]
[1768283736565,3.26750855,140.02,139.99,0.69032234]
[1768283736898,13.04,140.01,139.99,0.69032234]
[1768283737272,13.04,140.0,139.99,0.69032234]
[1768283738085,10.72302585,140.0,139.99,0.69032234]
[1768283738291,9.27302585,140.0,139.97,18.61156258]
[1768283738685,9.27302585,140.0,139.98,0.69032234]
[1768283739096,9.2158952,140.0,139.98,0.69032234]
[1768283739584,9.19008999,140.0,139.97,12.15783089]
[1768283739767,9.87051552,140.0,139.97,12.15783089]
[1768283740387,9.19008999,140.0,139.98,0.69032234]
[1768283740995,9.19008999,140.0,139.97,11.46750855]
[1768283741192,9.19008999,140.0,139.97,12.15783089]
[1768283741392,9.19008999,140.0,139.98,0.69032234]
[1768283741574,9.19008999,140.0,139.98,2.78197685]
[1768283741984,9.87051552,140.0,139.98,2.09165451]
[1768283742505,9.19008999,140.0,139.98,10.98197685]
[1768283743411,9.19008999,140.0,139.98,8.2]
[1768283743412,9.87051552,140.0,139.98,8.2]
[1768283743705,9.19008999,140.0,139.98,10.98197685]
[1768283744204,9.87051552,140.0,139.98,10.29165451]
[1768283745299,2.09165451,140.03,139.98,10.29165451]
[1768283745300,0.68042553,140.02,139.99,0.69032234]
[1768283745506,13.72042553,140.01,139.98,10.98197685]
[1768283750201,0.68042553,140.0,139.98,10.29165451]
[1768283751293,13.72042553,140.01,139.98,10.98197685]
[1768283753384,13.04,140.0,139.98,10.98197685]
[1768283756510,13.04,140.0,139.98,8.89032234]
[1768283756698,13.04,140.0,139.98,10.98197685]
[1768283757403,13.04,140.0,139.99,0.69032234]
[1768283757811,13.04,140.0,139.98,10.98197685]
[1768283759510,13.04,140.0,139.99,0.69032234]
[1768283760014,13.04,140.0,139.99,8.89032234]
[1768283761614,13.04,140.0,139.99,8.2]
[1768283762293,13.04,140.0,139.99,8.89032234]
[1768283769423,10.86646129,140.0,139.99,8.89032234]
[1768283769626,10.58687357,140.0,139.99,8.2]
[1768283770130,9.8664613,140.0,139.99,8.2]
[1768283770304,9.8664613,140.0,139.99,8.910711]
[1768283771027,7.37752234,140.0,139.99,8.2]
[1768283771224,8.09793461,140.0,139.99,8.2]
[1768283771815,9.23303628,140.03,140.0,0.10206539]
[1768283772012,13.04,140.02,140.0,0.10206539]
[1768283774022,13.18201059,140.02,140.0,0.10206539]
[1768283775608,0.69262869,140.01,140.0,0.10206539]
[1768283775813,0.69262869,140.01,139.98,0.71899906]
[1768283776220,0.6626287,140.01,139.98,0.71899906]
[1768283776836,13.04,140.0,139.98,0.71899906]
[1768283777024,13.01000001,140.0,139.98,0.71899906]
[1768283777625,13.01000001,140.0,139.98,2.31899906]
[1768283777926,13.01000001,140.0,139.98,4.41065357]
[1768283779453,13.01000001,140.0,139.99,0.71899906]
[1768283779632,12.95286939,140.0,139.99,0.71899906]
[1768283779935,12.92706422,140.0,139.99,0.71899906]
[1768283780618,12.89706423,140.0,139.99,0.71899906]
[1768283780940,12.89706423,140.0,139.98,1.6]
[1768283781840,12.89706423,140.0,139.98,2.31899906]
[1768283782931,7.74699169,140.01,139.98,2.31899906]
[1768283782932,0.60446444,140.01,139.98,2.31899906]
[1768283783124,13.04,140.0,139.99,0.71899906]
[1768283783639,13.04,140.0,139.99,2.31899906]
[1768283785152,13.04,140.0,139.99,1.6]
[1768283787148,0.10405465,139.99,139.94,0.71899906]
[1768283787325,1.6,139.99,139.94,0.71899906]
[1768283787524,13.04,139.98,139.96,0.71899906]
[1768283787742,13.04,139.97,139.96,0.71899906]
[1768283789741,13.04,139.97,139.95,2.81065357]
[1768283791446,0.60446444,139.98,139.95,2.81065357]
[1768283791638,0.60446444,139.98,139.96,2.09165451]
[1768283791639,13.04,139.97,139.96,2.09165451]
[1768283792036,13.04,139.97,139.95,0.71899906]
[1768283792231,13.04,139.97,139.96,2.09165451]
[1768283793433,13.04,139.97,139.95,2.31899906]
[1768283793768,13.04,139.97,139.96,2.09165451]
[1768283795944,13.04,139.97,139.96,2.80641709]
[1768283796963,13.04,139.98,139.96,2.80641709]
[1768283797155,13.04,139.98,139.96,0.71476258]
[1768283797858,13.04,139.98,139.95,4.40641709]
[1768283798151,13.64446444,139.98,139.95,4.40641709]
[1768283799745,13.04,139.98,139.96,0.71476258]
[1768283800554,0.099,139.99,139.96,0.71476258]
[1768283801668,0.099,139.99,139.95,5.58411723]
[1768283802157,0.60446444,139.98,139.95,2.31476258]
[1768283807363,0.59946034,139.96,139.95,1.6]
[1768283807538,3.8789248,139.97,139.95,1.34000037]
[1768283807739,3.8789248,139.97,139.95,1.28000043]
[1768283807941,0.60957015,139.97,139.95,1.28000043]
[1768283808163,0.60957015,139.97,139.95,1.22000044]
[1768283808164,3.8789248,139.97,139.95,1.22000044]
[1768283809040,0.099,139.96,139.95,1.22000044]
[1768283809251,24.99679562,140.02,139.96,0.71476258]
[1768283809564,0.05999995,140.01,139.95,3.26935465]
[1768283809745,3.26935465,140.0,139.94,17.02411723]
[1768283810155,3.26935465,140.0,139.95,3.26935465]
[1768283810471,3.26935465,140.0,139.94,13.04]
[1768283811068,3.26935465,140.0,139.95,3.26935465]
[1768283811569,3.26935465,140.0,139.96,0.71476258]
[1768283811950,3.3293546,140.0,139.96,0.71476258]
[1768283812962,3.3293546,140.0,139.96,1.51476258]
[1768283813469,10.47225817,140.0,139.96,1.51476258]
[1768283813674,3.26935465,139.99,139.96,1.51476258]
[1768283813847,3.3293546,139.99,139.96,0.8]
[1768283814343,3.3293546,139.99,139.96,0.74]
[1768283814543,3.3293546,139.98,139.96,0.62000005]
[1768283816454,0.05999995,139.98,139.96,0.62000005]
[1768283816767,3.3293546,139.98,139.96,0.62000005]
[1768283816980,10.47331087,139.98,139.96,0.62000005]
[1768283817173,3.26935465,139.97,139.96,0.56000005]
[1768283818440,7.14395627,139.98,139.96,0.56000005]
[1768283818763,7.14351246,139.99,139.95,0.71476258]
[1768283818967,3.26935465,139.98,139.94,13.50000005]
[1768283819354,3.26935465,139.95,139.91,0.2]
[1768283819549,3.26935465,139.93,139.91,0.2]
[1768283820069,3.26935465,139.92,139.91,0.2]
[1768283820573,3.26935465,139.93,139.91,0.2]
[1768283821148,10.41590604,139.93,139.91,0.2]
[1768283821347,3.26935465,139.92,139.91,0.2]
[1768283826973,3.26935465,139.92,139.9,1.01476258]
[1768283827484,3.26935465,139.91,139.9,1.01476258]
[1768283829787,3.21218729,139.91,139.9,1.01476258]
[1768283830287,3.18638226,139.91,139.9,0.3]
[1768283830491,3.18638226,139.91,139.89,0.87224673]
[1768283830863,3.26935465,139.92,139.9,0.67224673]
[1768283831793,21.13211614,139.96,139.9,0.67224673]
[1768283832008,3.26935465,139.92,139.9,0.97224673]
[1768283832677,7.14643838,139.93,139.9,0.97224673]
[1768283832872,3.26935465,139.92,139.9,0.97224673]
[1768283834292,21.13211614,139.96,139.9,0.97224673]
[1768283834293,25.00893175,139.95,139.9,0.97224673]
[1768283834498,3.26935465,139.92,139.9,0.3]
[1768283834698,3.26935465,139.92,139.89,1.16704291]
[1768283834896,3.26935465,139.92,139.89,0.5]
[1768283835086,3.26935465,139.91,139.89,0.5]
[1768283837482,3.26935465,139.92,139.89,0.5]
[1768283837789,3.26935465,139.92,139.9,0.66704291]
[1768283839282,3.26935465,139.92,139.9,0.96704291]
[1768283841203,10.41632774,139.92,139.9,0.96704291]
[1768283842985,17.86352268,139.95,139.91,0.66704291]
[1768283842986,7.14540907,139.95,139.91,0.66704291]
[1768283843304,10.41476372,139.95,139.93,0.66704291]
[1768283844685,3.26935465,139.94,139.93,0.66704291]
[1768283846301,3.26935465,139.95,139.93,0.66704291]
[1768283847388,10.41513305,139.95,139.93,0.66704291]
[1768283850513,10.41513305,139.95,139.92,13.34]
[1768283850713,10.41513305,139.95,139.92,14.00704291]
[1768283851715,3.26935465,139.94,139.92,14.00704291]
[1768283852515,3.26935465,139.93,139.92,14.00704291]
[1768283855398,10.41556758,139.94,139.92,13.94704291]
[1768283858104,3.26935465,139.93,139.92,13.94704291]
[1768283858315,3.26935465,139.93,139.92,13.88704292]
[1768283859312,10.41567769,139.94,139.92,13.22000001]
[1768283860020,3.26935465,139.93,139.91,0.72077962]
[1768283861699,3.26935465,139.93,139.91,0.66077964]
[1768283862216,10.41609096,139.93,139.91,0.66077964]
[1768283862810,6.42173631,139.93,139.89,3.46935465]
[1768283862997,7.14603809,139.94,139.9,3.26935465]
[1768283863315,7.14603809,139.94,139.9,2.09380723]
[1768283864717,7.14603809,139.94,139.91,0.72077962]
[1768283865018,7.86954174,139.94,139.91,0.72077962]
[1768283865904,7.14603809,139.94,139.91,0.72077962]
[1768283866098,9.23984532,139.94,139.91,0.72077962]
[1768283870118,9.96334897,139.94,139.91,0.72077962]
[1768283870314,7.86954174,139.94,139.91,0.72077962]
[1768283873427,7.86954174,139.94,139.89,2.29380723]
[1768283873428,0.72350365,139.93,139.9,0.72077962]
[1768283875230,9.96348486,139.94,139.9,0.72077962]
[1768283879617,0.72350365,139.93,139.89,0.92077962]
[1768283880232,0.72350365,139.93,139.9,0.72077962]
[1768283880439,0.72350365,139.93,139.89,0.92077962]
[1768283880627,2.81731088,139.93,139.9,0.72077962]
[1768283880815,0.72350365,139.93,139.9,0.72077962]
[1768283881822,7.87004912,139.93,139.9,0.66077963]
[1768283883920,9.96385635,139.93,139.9,0.66077963]
[1768283884124,7.87004912,139.93,139.9,0.66077963]
[1768283884332,0.72350365,139.92,139.89,3.01458685]
[1768283885029,0.72350365,139.92,139.89,0.92077962]
[1768283885231,7.14654547,139.93,139.9,0.66914801]
[1768283885542,7.84926817,139.93,139.9,0.66914801]
[1768283885843,9.9430754,139.93,139.9,0.66914801]
[1768283886232,0.7027227,139.92,139.89,0.86914801]
[1768283886432,2.79652993,139.92,139.89,0.86914801]
[1768283886740,0.7027227,139.92,139.89,0.2]
[1768283887441,9.94363378,139.92,139.89,0.86914801]
[1768283888438,0.7027227,139.91,139.89,0.2]
[1768283889950,0.7027227,139.91,139.89,0.86914801]
[1768283890126,9.94363378,139.92,139.89,0.86914801]
[1768283890323,9.24091108,139.92,139.89,0.86914801]
[1768283890548,9.94363378,139.92,139.89,0.86914801]
[1768283891938,0.7027227,139.9,139.89,0.2]
[1768283892251,0.7027227,139.91,139.89,0.2]
[1768283894448,9.90323537,139.92,139.89,0.91054319]
[1768283894749,0.66232429,139.91,139.89,0.2]
[1768283899353,0.66232429,139.9,139.89,0.2]
[1768283899951,2.75613152,139.92,139.89,0.91054319]
[1768283900138,0.66232429,139.92,139.89,0.91054319]
[1768283900337,2.75613152,139.92,139.89,0.91054319]
[1768283900547,9.90326348,139.92,139.89,0.91054319]
[1768283902062,0.66232429,139.91,139.89,0.2]
[1768283902561,9.90326348,139.92,139.89,0.91054319]
[1768283903764,7.80945625,139.92,139.89,0.91054319]
[1768283903964,9.90326348,139.92,139.89,0.91054319]
[1768283904562,7.80945625,139.92,139.89,0.91054319]
[1768283904766,9.90326348,139.92,139.89,0.91054319]
[1768283907563,0.66232429,139.91,139.89,0.2]
[1768283908066,0.66232429,139.91,139.89,0.91054319]
[1768283908362,0.66232429,139.91,139.89,0.2]
[1768283908564,2.75613152,139.91,139.89,0.2]
[1768283908865,9.90364969,139.91,139.89,0.2]
[1768283909565,0.66232429,139.9,139.89,0.2]
[1768283909751,9.2413254,139.91,139.89,0.91054319]
[1768283909950,0.40129787,139.9,139.89,0.2]
[1768283912061,0.66232429,139.89,139.87,0.2]
[1768283912364,2.75613152,139.89,139.87,0.2]
[1768283914072,0.66232429,139.88,139.87,0.2]
[1768283917472,9.90167328,139.89,139.87,0.2]
[1768283918974,0.65931251,139.9,139.87,0.89943064]
[1768283919348,9.90119526,139.9,139.87,0.89943064]
[1768283922178,2.09380723,139.89,139.87,0.89943064]
[1768283923172,2.75311974,139.89,139.87,0.2]
[1768283923376,3.93368855,139.89,139.87,0.2]
[1768283924077,3.27437604,139.89,139.87,0.89943064]
[1768283925356,10.42289957,139.89,139.87,0.89943064]
[1768283926065,11.08221208,139.89,139.87,0.89943064]
[1768283926262,10.42289957,139.89,139.87,0.89943064]
[1768283926463,11.08221208,139.89,139.84,5.7796541]
[1768283926676,7.80783604,139.89,139.84,5.7796541]
[1768283926975,11.08221208,139.89,139.84,5.7796541]
[1768283927277,11.08221208,139.89,139.84,9.05403014]
[1768283927763,11.08221208,139.89,139.83,105.77437604]
[1768283927764,3.93368855,139.88,139.83,105.77437604]
[1768283927967,3.93368855,139.88,139.83,102.5]
[1768283928560,3.93368855,139.88,139.84,0.69943064]
[1768283930478,0.65931251,139.87,139.84,0.69943064]
[1768283930681,3.93368855,139.88,139.84,0.69943064]
[1768283930985,11.08272873,139.88,139.84,0.69943064]
[1768283932583,0.65931251,139.87,139.84,0.69943064]
[1768283932795,3.93368855,139.87,139.84,0.69943064]
[1768283932995,0.65931251,139.87,139.84,0.69943064]
[1768283933284,11.08285032,139.88,139.84,0.69943064]
[1768283935691,7.80847428,139.88,139.84,0.69943064]
[1768283935860,0.65931251,139.88,139.84,0.69943064]
[1768283936189,0.65931251,139.88,139.85,0.69943064]
[1768283936361,3.93368855,139.88,139.85,0.69943064]
[1768283938673,3.93368855,139.87,139.84,0.69943064]
[1768283939280,0.65931251,139.86,139.83,8.05075029]
[1768283940796,3.93368855,139.87,139.84,0.69943064]
[1768283941498,3.27437604,139.87,139.84,0.69943064]
[1768283943807,11.08275191,139.88,139.84,0.69943064]
[1768283944305,0.65931251,139.87,139.83,8.05075029]
[1768283944483,3.93368855,139.87,139.83,8.05075029]
[1768283944684,0.72231738,139.86,139.83,8.05075029]
[1768283946424,0.72231738,139.88,139.85,3.27437604]
[1768283946714,3.97089115,139.88,139.84,0.66736281]
[1768283947015,3.27437604,139.88,139.84,0.66736281]
[1768283947689,3.27437604,139.88,139.83,10.62569569]
[1768283947690,3.27437604,139.85,139.83,0.2]
[1768283948287,3.27437604,139.86,139.83,0.2]
[1768283948482,3.27437604,139.85,139.83,0.2]
[1768283949913,3.99669342,139.85,139.83,0.2]
[1768283952306,10.42458207,139.86,139.83,0.2]
[1768283952482,3.27437604,139.86,139.84,0.66736281]
[1768283952681,3.99669342,139.87,139.84,0.66736281]
[1768283955701,0.72231738,139.87,139.84,0.66736281]
[1768283956023,3.99669342,139.87,139.84,0.66736281]
[1768283956219,0.72231738,139.87,139.84,0.66736281]
[1768283956510,3.99669342,139.87,139.84,0.66736281]
[1768283956697,11.14620091,139.87,139.84,0.66736281]
[1768283957314,3.27437604,139.86,139.84,0.66736281]
[1768283959112,3.98620961,139.86,139.83,0.89645133]
[1768283959313,0.71183357,139.86,139.83,0.89645133]
[1768283959507,3.98620961,139.86,139.83,0.89645133]
[1768283963124,0.71183357,139.86,139.83,0.89645133]
[1768283965930,0.71183357,139.87,139.84,0.69645133]
[1768283966333,3.98620961,139.87,139.84,0.69645133]
[1768283967026,0.71183357,139.86,139.83,0.89645133]
[1768283968331,3.98620961,139.86,139.83,0.89645133]
[1768283969623,0.71183357,139.87,139.83,0.89645133]
[1768283969826,0.71183357,139.87,139.84,0.69645133]
[1768283970130,0.71183357,139.87,139.83,8.04779684]
[1768283970826,0.71183357,139.87,139.84,0.69645133]
[1768283971834,7.86039504,139.89,139.86,0.69645133]
[1768283972029,11.1343207,139.9,139.86,0.69645133]
[1768283972332,3.98620961,139.91,139.87,0.69645133]
[1768283972532,11.13366339,139.91,139.87,0.69645133]
[1768283973039,3.27437604,139.9,139.87,0.69645133]
[1768283973219,3.98620961,139.9,139.87,0.69645133]
[1768283975440,0.71183357,139.9,139.87,0.69645133]
[1768283975737,11.11944788,139.91,139.87,0.69645133]
[1768283976115,7.84507184,139.91,139.87,0.69645133]
[1768283976321,11.11944788,139.91,139.87,0.69645133]
[1768283976940,7.84507184,139.91,139.87,0.69645133]
[1768283977117,11.11944788,139.91,139.87,0.69645133]
[1768283977312,0.69761806,139.91,139.87,0.69645133]
[1768283977540,0.69761806,139.91,139.88,0.68590968]
[1768283978331,0.69761806,139.91,139.87,10.42385598]
[1768283978530,0.69761806,139.91,139.88,0.68590968]
[1768283978729,7.14676671,139.93,139.88,0.68590968]
[1768283978932,0.69761806,139.92,139.88,0.68590968]
[1768283979641,0.69761806,139.92,139.88,3.96028572]
[1768283979951,0.69761806,139.92,139.88,0.68590968]
[1768283980244,0.69761806,139.91,139.88,0.68590968]
[1768283982536,0.69761806,139.91,139.87,11.10976566]
[1768283983339,0.69761806,139.91,139.87,9.93016751]
[1768283984130,0.69761806,139.91,139.87,7.83538962]
[1768283985042,0.69761806,139.91,139.87,0.68590968]
[1768283989459,0.69761806,139.91,139.87,2.78068757]
[1768283990059,0.69761806,139.91,139.88,0.68590968]
[1768283991057,0.69761806,139.91,139.87,2.78068757]
[1768283992962,0.69761806,139.91,139.87,0.68590968]
[1768283993160,0.69761806,139.91,139.87,2.78068757]
[1768283995876,0.69761806,139.91,139.88,0.68590968]
[1768283996044,0.69761806,139.91,139.88,2.78068757]
[1768283996668,0.69761806,139.91,139.88,9.92936227]
[1768284001052,0.69761806,139.92,139.89,0.68590968]
[1768284001248,0.69761806,139.95,139.91,0.68590968]
[1768284001450,0.69761806,139.95,139.92,0.68590968]
[1768284001651,0.69761806,139.95,139.9,9.24240993]
[1768284003670,2.09477789,139.95,139.91,0.68590968]
[1768284003866,0.69761806,139.94,139.91,0.68590968]
[1768284004066,0.69761806,139.93,139.9,0.68590968]
[1768284004561,0.69761806,139.93,139.89,0.70511187]
[1768284004879,2.81362948,139.91,139.87,0.70511187]
[1768284005788,0.71885159,139.91,139.88,0.70511187]
[1768284006077,2.81362948,139.93,139.89,0.70511187]
[1768284006289,0.71885159,139.94,139.9,0.64511188]
[1768284006586,0.71885159,139.94,139.9,2.73988977]
[1768284007753,0.71885159,139.94,139.9,0.64511188]
[1768284007979,0.71885159,139.94,139.9,2.73988977]
[1768284008355,0.71885159,139.94,139.9,9.88760617]
[1768284010583,0.71885159,139.95,139.91,9.91849475]
[1768284010788,0.71885159,139.95,139.92,0.67637169]
[1768284010973,0.71885159,139.95,139.92,2.77114958]
[1768284011175,0.71885159,139.96,139.93,0.67637169]
[1768284013167,0.71885159,139.95,139.91,7.82371686]
[1768284013568,0.71885159,139.95,139.91,7.14734517]
[1768284015385,0.690122,139.94,139.91,7.14734517]
[1768284016086,0.690122,139.94,139.91,7.82325096]
[1768284016294,0.690122,139.94,139.9,123.16369487]
[1768284016467,0.690122,139.94,139.9,20.86369487]
[1768284016668,2.78489989,139.94,139.9,20.86369487]
[1768284016991,0.690122,139.94,139.91,0.67590579]
[1768284017896,0.690122,139.94,139.9,20.86369487]
[1768284018193,0.690122,139.94,139.9,7.82369487]
[1768284018490,0.690122,139.9,139.86,0.67590579]
[1768284018679,0.690122,139.88,139.84,2.77068368]
[1768284018887,0.690122,139.88,139.85,7.15018624]
[1768284019698,0.690122,139.89,139.86,9.92049684]
[1768284020079,0.66432065,139.89,139.86,9.92049684]
[1768284020293,0.66432065,139.89,139.86,7.82571895]
[1768284021189,2.09477789,139.91,139.86,7.82571895]
[1768284021380,2.09477789,139.91,139.87,0.67590579]
[1768284021868,2.09477789,139.91,139.86,7.82571895]
[1768284022073,0.690122,139.9,139.86,7.14981316]
[1768284023594,0.690122,139.9,139.87,0.67590579]
[1768284024578,0.690122,139.9,139.86,7.14981316]
[1768284025474,0.690122,139.89,139.86,7.14981316]
[1768284028076,0.690122,139.9,139.86,7.14981316]
[1768284030408,0.690122,139.89,139.85,102.3]
[1768284030590,0.690122,139.89,139.84,0.67590579]
[1768284030591,0.690122,139.87,139.84,102.3]
[1768284030792,0.66012198,139.87,139.83,8.02708642]
[1768284030985,0.66012198,139.87,139.83,7.35118063]
[1768284031185,2.09477789,139.88,139.84,0.67590579]
[1768284032091,2.09477789,139.87,139.83,8.02708642]
[1768284032285,2.06477789,139.87,139.83,8.02708642]
[1768284032697,2.75489989,139.87,139.83,8.02708642]
[1768284033496,2.75489989,139.87,139.83,0.87590579]
[1768284034100,0.690122,139.87,139.83,0.87590579]
[1768284034284,2.78489989,139.87,139.83,0.87590579]
[1768284035503,0.690122,139.87,139.83,0.87590579]
[1768284035710,2.78489989,139.87,139.83,0.87590579]
[1768284036593,7.14936776,139.88,139.84,0.69640611]
[1768284036594,2.8036469,139.88,139.84,0.69640611]
[1768284036806,0.70886901,139.88,139.84,0.69640611]
[1768284037599,2.8036469,139.88,139.84,0.69640611]
[1768284037914,0.70886901,139.88,139.84,0.69640611]
[1768284038612,0.70886901,139.88,139.84,7.84734957]
[1768284038815,2.8036469,139.88,139.84,0.69640611]
[1768284039020,0.70886901,139.87,139.83,109.65150246]
[1768284039194,0.70886901,139.86,139.83,109.65150246]
[1768284039394,0.67886901,139.86,139.83,109.65150246]
[1768284041293,2.09477789,139.87,139.83,110.34790857]
[1768284041493,2.8036469,139.86,139.83,102.5]
[1768284042019,0.70886901,139.85,139.83,102.5]
[1768284042215,0.67886899,139.85,139.83,102.5]
[1768284042405,0.64886899,139.85,139.83,102.5]
[1768284043395,0.61886894,139.85,139.83,102.5]
[1768284043996,3.89497492,139.85,139.83,102.5]
[1768284044404,3.89497492,139.85,139.83,0.2]
[1768284046217,0.61886894,139.85,139.83,0.2]
[1768284046419,3.89497492,139.85,139.83,0.2]
[1768284048120,7.14954766,139.87,139.83,0.2]
[1768284048121,0.70886901,139.86,139.83,0.2]
[1768284048426,3.98497499,139.86,139.83,0.2]
[1768284048813,3.27610598,139.85,139.83,0.2]
[1768284049425,7.85891926,139.86,139.83,0.2]
[1768284049614,3.27610598,139.85,139.83,0.2]
[1768284050023,3.24610598,139.85,139.83,0.2]
[1768284050399,3.95497499,139.85,139.83,0.2]
[1768284050826,0.70886901,139.85,139.83,0.2]
[1768284051124,3.98497499,139.85,139.83,0.2]